[Event "*** Titled Tuesday Blitz"]
[Site "Chess.com"]
[Date "2019.07.02"]
[Round "8"]
[White "Alexander_Moskalenko"]
[Black "iturrizaga"]
[Result "1-0"]
[WhiteElo "2883"]
[BlackElo "2941"]
[TimeControl "180+2"]
[EndTime "14:49:07 PDT"]
[Termination "Alexander_Moskalenko won by checkmate"]

1. e4 {[%clk 0:02:59.9]} 1... c5 {[%clk 0:03:01.2]} 2. Nf3 {[%clk 0:03:00.1]}
2... g6 {[%clk 0:03:02.7]} 3. Bc4 {[%clk 0:03:00.2]} 3... Bg7 {[%clk 0:03:03.5]}
4. c3 {[%clk 0:02:56.6]} 4... e6 {[%clk 0:02:55]} 5. d4 {[%clk 0:02:53.9]} 5...
cxd4 {[%clk 0:02:53.4]} 6. cxd4 {[%clk 0:02:55.8]} 6... d5 {[%clk 0:02:54.3]} 7.
Bb5+ {[%clk 0:02:45.7]} 7... Bd7 {[%clk 0:02:51.5]} 8. Bxd7+ {[%clk 0:02:44.4]}
8... Qxd7 {[%clk 0:02:51.4]} 9. e5 {[%clk 0:02:32.6]} 9... Nc6 {[%clk
0:02:51.2]} 10. Nc3 {[%clk 0:02:34.5]} 10... Nge7 {[%clk 0:02:41.5]} 11. O-O
{[%clk 0:02:34.9]} 11... O-O {[%clk 0:02:42]} 12. Bf4 {[%clk 0:02:29.7]} 12...
h6 {[%clk 0:02:40.8]} 13. h3 {[%clk 0:02:24.3]} 13... g5 {[%clk 0:02:33.3]} 14.
Be3 {[%clk 0:02:16.7]} 14... Ng6 {[%clk 0:02:25.6]} 15. Ne2 {[%clk 0:02:17.9]}
15... f5 {[%clk 0:02:21.7]} 16. exf6 {[%clk 0:02:18]} 16... Rxf6 {[%clk
0:02:23]} 17. Ng3 {[%clk 0:02:16]} 17... Raf8 {[%clk 0:02:24.5]} 18. Nh2 {[%clk
0:02:10.4]} 18... Nf4 {[%clk 0:02:19.2]} 19. Re1 {[%clk 0:02:09.5]} 19... R6f7
{[%clk 0:02:11.7]} 20. Nh5 {[%clk 0:02:10.6]} 20... Nxh5 {[%clk 0:02:09.9]} 21.
Qxh5 {[%clk 0:02:12.5]} 21... Nxd4 {[%clk 0:02:10.9]} 22. Ng4 {[%clk 0:02:09.2]}
22... Nf5 {[%clk 0:02:10.3]} 23. Qg6 {[%clk 0:02:07.7]} 23... d4 {[%clk
0:01:21.6]} 24. Bd2 {[%clk 0:02:08.1]} 24... Kh8 {[%clk 0:01:00.7]} 25. Rac1
{[%clk 0:02:03.1]} 25... Re8 {[%clk 0:00:41.6]} 26. Rc5 {[%clk 0:01:55]} 26...
Qe7 {[%clk 0:00:23.8]} 27. Rec1 {[%clk 0:01:49]} 27... Qf8 {[%clk 0:00:22.3]}
28. b3 {[%clk 0:01:36.9]} 28... Nh4 {[%clk 0:00:17.6]} 29. Qh5 {[%clk
0:01:31.6]} 29... Kg8 {[%clk 0:00:18]} 30. Bb4 {[%clk 0:01:01]} 30... a5 {[%clk
0:00:12.2]} 31. Ba3 {[%clk 0:00:59.1]} 31... Qe7 {[%clk 0:00:05.1]} 32. Rxa5
{[%clk 0:00:59.3]} 32... Qd8 {[%clk 0:00:04.4]} 33. Nxh6+ {[%clk 0:00:58.7]}
33... Bxh6 {[%clk 0:00:05.2]} 34. Qxh6 {[%clk 0:01:00.6]} 34... Qxa5 {[%clk
0:00:06.2]} 35. Rc5 {[%clk 0:00:39.1]} 35... Qe1+ {[%clk 0:00:06.2]} 36. Kh2
{[%clk 0:00:40.5]} 36... Nf3+ {[%clk 0:00:05.6]} 37. Kg3 {[%clk 0:00:41.7]}
37... Rg7 {[%clk 0:00:03.6]} 38. Kxf3 {[%clk 0:00:27.2]} 38... Rf8+ {[%clk
0:00:04.2]} 39. Kg3 {[%clk 0:00:28.7]} 39... Qxf2+ {[%clk 0:00:05.3]} 40. Kh2
{[%clk 0:00:30.1]} 40... Qf4+ {[%clk 0:00:06.6]} 41. Kh1 {[%clk 0:00:31.5]}
41... Qf1+ {[%clk 0:00:07.2]} 42. Kh2 {[%clk 0:00:32.8]} 42... Qf4+ {[%clk
0:00:08.8]} 43. Kh1 {[%clk 0:00:34.3]} 43... Qg3 {[%clk 0:00:09.3]} 44. Rc1
{[%clk 0:00:33.4]} 44... Rf2 {[%clk 0:00:09.9]} 45. Rc8+ {[%clk 0:00:34]} 45...
Kf7 {[%clk 0:00:11.1]} 46. Rf8# {[%clk 0:00:35.3]} 1-0

[Event "*** Titled Tuesday Blitz"]
[Site "Chess.com"]
[Date "2019.07.02"]
[Round "8"]
[White "VeraNebolsina"]
[Black "lrestevez"]
[Result "1/2-1/2"]
[WhiteElo "2377"]
[BlackElo "2144"]
[TimeControl "180+2"]
[EndTime "14:49:18 PDT"]
[Termination "Game drawn by agreement"]

1. e4 {[%clk 0:03:01.9]} 1... e5 {[%clk 0:02:58]} 2. Nf3 {[%clk 0:03:02.1]} 2...
Nc6 {[%clk 0:02:59]} 3. Bb5 {[%clk 0:03:01.1]} 3... a6 {[%clk 0:02:58.6]} 4. Ba4
{[%clk 0:03:02]} 4... Nf6 {[%clk 0:02:59]} 5. O-O {[%clk 0:03:01.6]} 5... b5
{[%clk 0:03:00.3]} 6. Bb3 {[%clk 0:03:02.4]} 6... Be7 {[%clk 0:03:01.9]} 7. Re1
{[%clk 0:03:02.8]} 7... O-O {[%clk 0:03:03.3]} 8. c3 {[%clk 0:03:04.1]} 8... d5
{[%clk 0:03:04.4]} 9. d4 {[%clk 0:03:04.4]} 9... exd4 {[%clk 0:03:01.8]} 10. e5
{[%clk 0:03:04.9]} 10... Ne4 {[%clk 0:02:30.1]} 11. cxd4 {[%clk 0:03:05.2]}
11... Be6 {[%clk 0:02:26.1]} 12. Nbd2 {[%clk 0:03:00.6]} 12... Nxd2 {[%clk
0:02:26]} 13. Bxd2 {[%clk 0:03:01]} 13... Nb4 {[%clk 0:02:19.7]} 14. Be3 {[%clk
0:02:49.2]} 14... Nc6 {[%clk 0:02:05.8]} 15. Rc1 {[%clk 0:02:38]} 15... Na5
{[%clk 0:02:05.8]} 16. Bc2 {[%clk 0:02:39.2]} 16... Nc4 {[%clk 0:02:04.2]} 17.
Bb1 {[%clk 0:02:40.2]} 17... Nxe3 {[%clk 0:01:55.6]} 18. Rxe3 {[%clk 0:02:36.7]}
18... g6 {[%clk 0:01:56.9]} 19. Rec3 {[%clk 0:02:33.9]} 19... Rc8 {[%clk
0:01:55.2]} 20. Rc6 {[%clk 0:02:28.9]} 20... a5 {[%clk 0:01:40.6]} 21. Qe2
{[%clk 0:02:16.7]} 21... Bd7 {[%clk 0:01:28.1]} 22. Ra6 {[%clk 0:02:06.4]} 22...
a4 {[%clk 0:01:28.2]} 23. Bd3 {[%clk 0:01:57.1]} 23... c6 {[%clk 0:01:29]} 24.
Ra7 {[%clk 0:01:46.8]} 24... Bg4 {[%clk 0:01:26.7]} 25. h3 {[%clk 0:01:39.3]}
25... Be6 {[%clk 0:01:25.3]} 26. Qe3 {[%clk 0:01:36.5]} 26... Rc7 {[%clk
0:01:21.1]} 27. Rxc7 {[%clk 0:01:35.9]} 27... Qxc7 {[%clk 0:01:22.3]} 28. Bxb5
{[%clk 0:01:34.9]} 28... Qb6 {[%clk 0:01:21.7]} 29. Bxc6 {[%clk 0:01:34.1]}
29... Qxb2 {[%clk 0:01:17]} 30. Bxa4 {[%clk 0:01:19.6]} 30... Qxa2 {[%clk
0:01:14.3]} 31. Bb3 {[%clk 0:01:00.2]} 31... Qa7 {[%clk 0:01:09.4]} 32. h4
{[%clk 0:00:41.9]} 32... Rb8 {[%clk 0:01:02.9]} 33. h5 {[%clk 0:00:39.6]} 33...
Bf8 {[%clk 0:01:03.5]} 34. hxg6 {[%clk 0:00:30.2]} 34... hxg6 {[%clk 0:01:04.5]}
35. Bc2 {[%clk 0:00:26.2]} 35... Rc8 {[%clk 0:01:03.3]} 36. Bd3 {[%clk
0:00:21.7]} 36... Rxc1+ {[%clk 0:01:02]} 37. Qxc1 {[%clk 0:00:22.7]} 37... Bg4
{[%clk 0:01:03.3]} 38. Qf4 {[%clk 0:00:20.7]} 38... Qa1+ {[%clk 0:00:57.8]} 39.
Kh2 {[%clk 0:00:20.9]} 39... Bxf3 {[%clk 0:00:56.6]} 40. gxf3 {[%clk 0:00:21.2]}
40... Qe1 {[%clk 0:00:55]} 41. Kg2 {[%clk 0:00:20.9]} 41... Bb4 {[%clk
0:00:49.1]} 42. Bb5 {[%clk 0:00:19]} 42... Qd2 {[%clk 0:00:45.6]} 43. Qf6 {[%clk
0:00:18]} 43... Qxd4 {[%clk 0:00:40.5]} 44. Be8 {[%clk 0:00:18.7]} 44... Qa7
{[%clk 0:00:39.9]} 45. e6 {[%clk 0:00:19.6]} 45... fxe6 {[%clk 0:00:39.4]} 46.
Qxe6+ {[%clk 0:00:19.7]} 46... Kg7 {[%clk 0:00:39.3]} 47. Qxg6+ {[%clk
0:00:20.2]} 47... Kf8 {[%clk 0:00:39.8]} 48. Bc6 {[%clk 0:00:20.6]} 48... Qg7
{[%clk 0:00:38.5]} 49. Qxg7+ {[%clk 0:00:21]} 49... Kxg7 {[%clk 0:00:39.7]} 50.
Bxd5 {[%clk 0:00:22.4]} 50... Kf6 {[%clk 0:00:40.7]} 51. f4 {[%clk 0:00:23.5]}
1/2-1/2

[Event "*** Titled Tuesday Blitz"]
[Site "Chess.com"]
[Date "2019.07.02"]
[Round "8"]
[White "Blitzstream"]
[Black "Heineccius"]
[Result "1/2-1/2"]
[WhiteElo "2774"]
[BlackElo "2549"]
[TimeControl "180+2"]
[EndTime "14:49:22 PDT"]
[Termination "Game drawn by repetition"]

1. d4 {[%clk 0:03:01.9]} 1... Nf6 {[%clk 0:02:59.5]} 2. Bg5 {[%clk 0:03:02.7]}
2... e6 {[%clk 0:02:59.5]} 3. e4 {[%clk 0:03:03.4]} 3... h6 {[%clk 0:02:59.7]}
4. Bxf6 {[%clk 0:03:04.7]} 4... Qxf6 {[%clk 0:03:00.5]} 5. c3 {[%clk 0:03:06.6]}
5... d6 {[%clk 0:03:01]} 6. Bd3 {[%clk 0:03:07.6]} 6... e5 {[%clk 0:03:01.4]} 7.
Ne2 {[%clk 0:03:08.8]} 7... g5 {[%clk 0:02:57.9]} 8. O-O {[%clk 0:03:07.3]} 8...
Nc6 {[%clk 0:02:59]} 9. Bb5 {[%clk 0:03:00.9]} 9... Bd7 {[%clk 0:02:57.7]} 10.
d5 {[%clk 0:02:58.8]} 10... Nb8 {[%clk 0:02:58.5]} 11. Bxd7+ {[%clk 0:02:58.5]}
11... Nxd7 {[%clk 0:02:53.9]} 12. Ng3 {[%clk 0:03:00.4]} 12... Bg7 {[%clk
0:02:29.3]} 13. Na3 {[%clk 0:02:55.3]} 13... a6 {[%clk 0:02:19.4]} 14. Nc4
{[%clk 0:02:33.3]} 14... O-O {[%clk 0:02:06.8]} 15. Ne3 {[%clk 0:02:31.4]} 15...
Rfd8 {[%clk 0:01:54.2]} 16. b4 {[%clk 0:01:40.8]} 16... Qg6 {[%clk 0:01:51.2]}
17. Nef5 {[%clk 0:01:34.7]} 17... Bf8 {[%clk 0:01:48.3]} 18. Nh5 {[%clk
0:01:32.5]} 18... Nf6 {[%clk 0:01:45.8]} 19. Nxf6+ {[%clk 0:01:32.4]} 19... Qxf6
{[%clk 0:01:46.9]} 20. c4 {[%clk 0:01:29.1]} 20... c6 {[%clk 0:01:46.7]} 21. Qe2
{[%clk 0:01:23.4]} 21... Rac8 {[%clk 0:01:47.1]} 22. Rac1 {[%clk 0:01:22.4]}
22... Rc7 {[%clk 0:01:46.7]} 23. Rfd1 {[%clk 0:01:09.5]} 23... Rdc8 {[%clk
0:01:46.6]} 24. Qe3 {[%clk 0:01:07.6]} 24... Kh7 {[%clk 0:01:45.2]} 25. a3
{[%clk 0:01:01.6]} 25... Kg6 {[%clk 0:01:43.2]} 26. h3 {[%clk 0:00:55.5]} 26...
b5 {[%clk 0:01:41.5]} 27. dxc6 {[%clk 0:00:43.3]} 27... bxc4 {[%clk 0:01:36.2]}
28. Rxc4 {[%clk 0:00:43.6]} 28... Rxc6 {[%clk 0:01:37.5]} 29. Rxc6 {[%clk
0:00:43.3]} 29... Rxc6 {[%clk 0:01:38.8]} 30. Qa7 {[%clk 0:00:38.6]} 30... Qe6
{[%clk 0:01:38.2]} 31. Qa8 {[%clk 0:00:29.1]} 31... Qc8 {[%clk 0:01:13.3]} 32.
Qxc8 {[%clk 0:00:29.9]} 32... Rxc8 {[%clk 0:01:14.4]} 33. Rd3 {[%clk 0:00:31.5]}
33... Rc6 {[%clk 0:01:14.3]} 34. Kf1 {[%clk 0:00:32.1]} 34... Kf6 {[%clk
0:01:15.1]} 35. Ke2 {[%clk 0:00:33.3]} 35... Rc2+ {[%clk 0:01:14.6]} 36. Ke3
{[%clk 0:00:28.4]} 36... Ke6 {[%clk 0:01:13.5]} 37. g4 {[%clk 0:00:29.3]} 37...
Rc1 {[%clk 0:01:12.9]} 38. Kd2 {[%clk 0:00:28.5]} 38... Ra1 {[%clk 0:01:13.1]}
39. Ne3 {[%clk 0:00:23.9]} 39... Be7 {[%clk 0:01:10.4]} 40. Nc4 {[%clk
0:00:22.5]} 40... Rf1 {[%clk 0:01:07.5]} 41. Ke2 {[%clk 0:00:23.1]} 41... Rc1
{[%clk 0:01:00.7]} 42. Ne3 {[%clk 0:00:23.6]} 42... Bd8 {[%clk 0:00:46.6]} 43.
Nf5 {[%clk 0:00:24.7]} 43... Bc7 {[%clk 0:00:46.2]} 44. Nxh6 {[%clk 0:00:25.4]}
44... Rc2+ {[%clk 0:00:44.4]} 45. Rd2 {[%clk 0:00:22.4]} 45... Rc3 {[%clk
0:00:44.1]} 46. Rd3 {[%clk 0:00:22.3]} 46... Rc2+ {[%clk 0:00:45]} 47. Rd2
{[%clk 0:00:22.8]} 47... Rc3 {[%clk 0:00:45.3]} 48. Rd3 {[%clk 0:00:12.7]} 48...
Rc2+ {[%clk 0:00:45.9]} 1/2-1/2

[Event "*** Titled Tuesday Blitz"]
[Site "Chess.com"]
[Date "2019.07.02"]
[Round "8"]
[White "VFernandezB"]
[Black "vova-79"]
[Result "0-1"]
[WhiteElo "2339"]
[BlackElo "2406"]
[TimeControl "180+2"]
[EndTime "14:49:25 PDT"]
[Termination "vova-79 won by resignation"]

1. e4 {[%clk 0:03:01.9]} 1... e6 {[%clk 0:03:00.2]} 2. d4 {[%clk 0:03:02.4]}
2... d5 {[%clk 0:03:01]} 3. Nd2 {[%clk 0:03:02.8]} 3... dxe4 {[%clk 0:03:01.5]}
4. Nxe4 {[%clk 0:03:03.7]} 4... Nd7 {[%clk 0:03:02.8]} 5. g3 {[%clk 0:03:03.3]}
5... Ngf6 {[%clk 0:03:04]} 6. Nxf6+ {[%clk 0:03:04.5]} 6... Nxf6 {[%clk
0:03:04.9]} 7. Bg2 {[%clk 0:03:05.5]} 7... e5 {[%clk 0:03:06]} 8. Ne2 {[%clk
0:03:06]} 8... exd4 {[%clk 0:03:01.6]} 9. Qxd4 {[%clk 0:03:06.7]} 9... Qxd4
{[%clk 0:02:45.8]} 10. Nxd4 {[%clk 0:03:07.4]} 10... c6 {[%clk 0:02:40.5]} 11.
O-O {[%clk 0:03:05.7]} 11... Bc5 {[%clk 0:02:40.2]} 12. Re1+ {[%clk 0:03:06.4]}
12... Kf8 {[%clk 0:02:41.5]} 13. Nb3 {[%clk 0:03:04.8]} 13... Bb6 {[%clk
0:02:37.7]} 14. Be3 {[%clk 0:03:02.8]} 14... Be6 {[%clk 0:02:34]} 15. Nc5 {[%clk
0:02:55.8]} 15... Bxc5 {[%clk 0:02:33.8]} 16. Bxc5+ {[%clk 0:02:56.6]} 16... Kg8
{[%clk 0:02:35.7]} 17. b3 {[%clk 0:02:55.4]} 17... h6 {[%clk 0:02:34.9]} 18.
Rad1 {[%clk 0:02:54.6]} 18... Kh7 {[%clk 0:02:35.3]} 19. c4 {[%clk 0:02:55.2]}
19... a6 {[%clk 0:02:34]} 20. h3 {[%clk 0:02:52.7]} 20... Rae8 {[%clk
0:02:33.3]} 21. g4 {[%clk 0:02:50.6]} 21... Bc8 {[%clk 0:02:28.6]} 22. Bd4
{[%clk 0:02:46.7]} 22... Rxe1+ {[%clk 0:02:27]} 23. Rxe1 {[%clk 0:02:47.3]}
23... Re8 {[%clk 0:02:27.5]} 24. Rxe8 {[%clk 0:02:46.1]} 24... Nxe8 {[%clk
0:02:27.8]} 25. f4 {[%clk 0:02:47.1]} 25... f5 {[%clk 0:02:27.8]} 26. g5 {[%clk
0:02:44.8]} 26... Nd6 {[%clk 0:02:01]} 27. Be5 {[%clk 0:02:42.3]} 27... Ne4
{[%clk 0:02:00]} 28. Bxe4 {[%clk 0:02:42.7]} 28... fxe4 {[%clk 0:01:59.2]} 29.
h4 {[%clk 0:02:43.8]} 29... hxg5 {[%clk 0:01:49.8]} 30. hxg5 {[%clk 0:02:44.9]}
30... b5 {[%clk 0:01:30.5]} 31. c5 {[%clk 0:02:39.5]} 31... a5 {[%clk 0:01:27]}
32. Kf2 {[%clk 0:02:40]} 32... a4 {[%clk 0:01:25.6]} 33. bxa4 {[%clk 0:02:39.2]}
33... bxa4 {[%clk 0:01:26]} 34. a3 {[%clk 0:02:40.7]} 34... g6 {[%clk
0:01:21.4]} 35. Ke3 {[%clk 0:02:41.3]} 35... Bf5 {[%clk 0:01:21.8]} 36. Kd4
{[%clk 0:02:42.7]} 36... Kg8 {[%clk 0:01:22.3]} 37. Kc4 {[%clk 0:02:42.9]} 37...
Kf7 {[%clk 0:01:20.5]} 38. Kb4 {[%clk 0:02:43.9]} 38... e3 {[%clk 0:01:20.9]}
39. Bc3 {[%clk 0:02:44.1]} 39... Bc2 {[%clk 0:01:20.6]} 40. Kc4 {[%clk
0:02:43.5]} 40... Ke6 {[%clk 0:01:19.5]} 41. Kd4 {[%clk 0:02:44.6]} 41... e2
{[%clk 0:01:19.1]} 42. Bd2 {[%clk 0:02:45.3]} 42... Kf5 {[%clk 0:01:16.5]} 43.
Ke3 {[%clk 0:02:46.4]} 43... Bd1 {[%clk 0:01:15.7]} 44. Be1 {[%clk 0:02:43.8]}
44... Ke6 {[%clk 0:01:12.9]} 45. Ke4 {[%clk 0:02:44.6]} 45... Bb3 {[%clk
0:01:10.8]} 46. Bc3 {[%clk 0:02:43.2]} 46... Bc2+ {[%clk 0:01:09.9]} 47. Ke3
{[%clk 0:02:44]} 47... Bd1 {[%clk 0:01:10]} 48. Be5 {[%clk 0:02:45.2]} 48... Kf5
{[%clk 0:01:04.3]} 49. Kf2 {[%clk 0:02:45.2]} 49... Ke4 {[%clk 0:01:02.6]} 50.
Ke1 {[%clk 0:02:36.7]} 50... Kd5 {[%clk 0:00:58.7]} 51. Bd6 {[%clk 0:02:36.8]}
51... Ke6 {[%clk 0:00:58.3]} 52. Kd2 {[%clk 0:02:36.7]} 52... Kf5 {[%clk
0:00:58.4]} 53. Be5 {[%clk 0:02:38]} 53... Ke4 {[%clk 0:00:57.9]} 54. Bd6 {[%clk
0:02:37.6]} 54... Kf3 {[%clk 0:00:55.9]} 55. Ke1 {[%clk 0:02:38.7]} 55... Bc2
{[%clk 0:00:55.3]} 56. Be5 {[%clk 0:02:38.5]} 56... Bf5 {[%clk 0:00:55]} 57. Bd6
{[%clk 0:02:39.3]} 57... Ke3 {[%clk 0:00:55.4]} 58. Be5 {[%clk 0:02:40]} 58...
Kd3 {[%clk 0:00:56.1]} 59. Bd6 {[%clk 0:02:40.9]} 59... Bg4 {[%clk 0:00:55]} 60.
Be5 {[%clk 0:02:39.6]} 60... Kc4 {[%clk 0:00:55.3]} 61. Bd6 {[%clk 0:02:39.3]}
61... Kb3 {[%clk 0:00:55.5]} 62. Kd2 {[%clk 0:02:40.5]} 62... Kxa3 {[%clk
0:00:55.4]} 63. Be5 {[%clk 0:02:41.7]} 63... Kb4 {[%clk 0:00:52]} 64. Ba1 {[%clk
0:02:42.3]} 64... Kxc5 {[%clk 0:00:51.3]} 65. Bc3 {[%clk 0:02:40]} 65... Kc4
{[%clk 0:00:51.2]} 66. Be5 {[%clk 0:02:39]} 66... Kb3 {[%clk 0:00:50.6]} 67. Bc3
{[%clk 0:02:39.3]} 67... Ka2 {[%clk 0:00:50]} 68. Kc2 {[%clk 0:02:39.8]} 68...
Bf5+ {[%clk 0:00:42.3]} 69. Kd2 {[%clk 0:02:38.3]} 69... a3 {[%clk 0:00:41.6]}
70. Kxe2 {[%clk 0:02:38.9]} 70... Kb1 {[%clk 0:00:41.5]} 71. Ke3 {[%clk
0:02:37.1]} 71... a2 {[%clk 0:00:41.6]} 72. Kd4 {[%clk 0:02:37.9]} 72... a1=Q
{[%clk 0:00:42]} 73. Bxa1 {[%clk 0:02:39.5]} 73... Kxa1 {[%clk 0:00:43.9]} 74.
Kc5 {[%clk 0:02:40.3]} 74... Kb2 {[%clk 0:00:43.9]} 75. Kxc6 {[%clk 0:02:41]}
75... Kc3 {[%clk 0:00:44.1]} 76. Kd5 {[%clk 0:02:42.7]} 76... Kd3 {[%clk
0:00:43.8]} 77. Ke5 {[%clk 0:02:44]} 77... Ke3 {[%clk 0:00:43.7]} 0-1

[Event "*** Titled Tuesday Blitz"]
[Site "Chess.com"]
[Date "2019.07.02"]
[Round "8"]
[White "Pechen_Yeltsina"]
[Black "ruzomberok"]
[Result "0-1"]
[WhiteElo "2650"]
[BlackElo "2435"]
[TimeControl "180+2"]
[EndTime "14:49:28 PDT"]
[Termination "ruzomberok won by checkmate"]

1. e4 {[%clk 0:03:01.9]} 1... e5 {[%clk 0:03:00.2]} 2. Nc3 {[%clk 0:03:01.8]}
2... Nf6 {[%clk 0:03:00.7]} 3. Bc4 {[%clk 0:03:03.1]} 3... Nc6 {[%clk
0:02:59.6]} 4. d3 {[%clk 0:03:04.4]} 4... Na5 {[%clk 0:03:00.5]} 5. Nge2 {[%clk
0:03:04.8]} 5... Be7 {[%clk 0:02:54.5]} 6. O-O {[%clk 0:03:03.5]} 6... Nxc4
{[%clk 0:02:55.2]} 7. dxc4 {[%clk 0:03:04.1]} 7... d6 {[%clk 0:02:56]} 8. Qd3
{[%clk 0:02:59.7]} 8... O-O {[%clk 0:02:57.1]} 9. Be3 {[%clk 0:02:58.4]} 9...
Be6 {[%clk 0:02:57.3]} 10. b3 {[%clk 0:02:47.7]} 10... c6 {[%clk 0:02:50.4]} 11.
Rad1 {[%clk 0:02:46.6]} 11... Qc7 {[%clk 0:02:49.7]} 12. h3 {[%clk 0:02:41.6]}
12... Rfe8 {[%clk 0:02:44.9]} 13. f4 {[%clk 0:02:37.5]} 13... exf4 {[%clk
0:02:44.1]} 14. Nxf4 {[%clk 0:02:39.4]} 14... Bf8 {[%clk 0:02:29.9]} 15. Bd4
{[%clk 0:02:40]} 15... Nd7 {[%clk 0:02:26.8]} 16. Qg3 {[%clk 0:02:41.2]} 16...
Ne5 {[%clk 0:02:23.3]} 17. Nh5 {[%clk 0:02:34]} 17... Ng6 {[%clk 0:02:13.3]} 18.
Rd3 {[%clk 0:02:09.1]} 18... Qa5 {[%clk 0:02:13.4]} 19. Nf4 {[%clk 0:02:02.9]}
19... Ne5 {[%clk 0:02:11.5]} 20. Rd2 {[%clk 0:01:59.1]} 20... Rad8 {[%clk
0:01:57.9]} 21. Rfd1 {[%clk 0:01:56.9]} 21... Ng6 {[%clk 0:01:48.9]} 22. Nce2
{[%clk 0:01:33.3]} 22... d5 {[%clk 0:01:32.7]} 23. cxd5 {[%clk 0:01:24.9]} 23...
cxd5 {[%clk 0:01:34.6]} 24. exd5 {[%clk 0:01:26.1]} 24... Bxd5 {[%clk
0:01:31.8]} 25. Bc3 {[%clk 0:01:23]} 25... Qb6+ {[%clk 0:01:26.5]} 26. Bd4
{[%clk 0:01:20.5]} 26... Qa5 {[%clk 0:01:26.4]} 27. Bc3 {[%clk 0:01:07.9]} 27...
Qb6+ {[%clk 0:01:26.8]} 28. Kh2 {[%clk 0:01:09.3]} 28... Be4 {[%clk 0:01:19.7]}
29. Bd4 {[%clk 0:01:01.9]} 29... Qa5 {[%clk 0:01:12.5]} 30. Bc3 {[%clk 0:01:02]}
30... Qb6 {[%clk 0:01:13.3]} 31. Rxd8 {[%clk 0:01:02.1]} 31... Rxd8 {[%clk
0:01:13.8]} 32. Rxd8 {[%clk 0:01:02.2]} 32... Qxd8 {[%clk 0:01:15.7]} 33. Qe3
{[%clk 0:01:01.2]} 33... Nxf4 {[%clk 0:01:11.9]} 34. Nxf4 {[%clk 0:00:55.1]}
34... Bxc2 {[%clk 0:01:11.6]} 35. Qxa7 {[%clk 0:00:54]} 35... Bd6 {[%clk
0:01:12.2]} 36. Qd4 {[%clk 0:00:55]} 36... Bxf4+ {[%clk 0:01:05.2]} 37. Qxf4
{[%clk 0:00:56.9]} 37... Bg6 {[%clk 0:00:53]} 38. a4 {[%clk 0:00:42.3]} 38... f6
{[%clk 0:00:53.1]} 39. a5 {[%clk 0:00:41.4]} 39... Be8 {[%clk 0:00:47]} 40. Qc4+
{[%clk 0:00:35.8]} 40... Bf7 {[%clk 0:00:46.5]} 41. Qc5 {[%clk 0:00:28.5]} 41...
Bxb3 {[%clk 0:00:43.5]} 42. h4 {[%clk 0:00:22.8]} 42... h6 {[%clk 0:00:42.4]}
43. Qb4 {[%clk 0:00:21.9]} 43... Bd5 {[%clk 0:00:41]} 44. Qc5 {[%clk 0:00:21.3]}
44... Qd7 {[%clk 0:00:40.9]} 45. Qd4 {[%clk 0:00:16.1]} 45... Qf5 {[%clk
0:00:39.5]} 46. Kg3 {[%clk 0:00:13.5]} 46... Qg6+ {[%clk 0:00:39.1]} 47. Kf4
{[%clk 0:00:10]} 47... Qxg2 {[%clk 0:00:37.2]} 48. Qc5 {[%clk 0:00:08.8]} 48...
Qf3# {[%clk 0:00:37.3]} 0-1

[Event "*** Titled Tuesday Blitz"]
[Site "Chess.com"]
[Date "2019.07.02"]
[Round "8"]
[White "Vadim_Biliy"]
[Black "Manukyan_Artak"]
[Result "1-0"]
[WhiteElo "2226"]
[BlackElo "2306"]
[TimeControl "180+2"]
[EndTime "14:49:39 PDT"]
[Termination "Vadim_Biliy won by resignation"]

1. e4 {[%clk 0:03:01.9]} 1... e5 {[%clk 0:03:00.1]} 2. Nf3 {[%clk 0:03:02.1]}
2... d6 {[%clk 0:03:00.7]} 3. Bc4 {[%clk 0:03:03.5]} 3... Be7 {[%clk 0:03:01.2]}
4. h3 {[%clk 0:03:01]} 4... Nf6 {[%clk 0:03:02.1]} 5. d3 {[%clk 0:03:01.9]} 5...
O-O {[%clk 0:03:02.9]} 6. Nc3 {[%clk 0:03:02]} 6... c6 {[%clk 0:03:03.6]} 7. Bb3
{[%clk 0:02:59.9]} 7... Nbd7 {[%clk 0:03:02.7]} 8. Be3 {[%clk 0:02:58.2]} 8...
b5 {[%clk 0:02:59.9]} 9. O-O {[%clk 0:02:54.9]} 9... a5 {[%clk 0:03:00.7]} 10.
a4 {[%clk 0:02:52.9]} 10... b4 {[%clk 0:03:01.5]} 11. Ne2 {[%clk 0:02:52.5]}
11... Re8 {[%clk 0:02:58.3]} 12. Ng3 {[%clk 0:02:51.6]} 12... Bf8 {[%clk
0:02:58.2]} 13. c3 {[%clk 0:02:43.3]} 13... Nc5 {[%clk 0:02:58.3]} 14. Bc4
{[%clk 0:02:42.1]} 14... Ne6 {[%clk 0:02:52]} 15. d4 {[%clk 0:02:38.6]} 15...
exd4 {[%clk 0:02:51.5]} 16. cxd4 {[%clk 0:02:29.7]} 16... d5 {[%clk 0:02:52.2]}
17. exd5 {[%clk 0:02:24.1]} 17... Nxd5 {[%clk 0:02:50.7]} 18. Ne5 {[%clk
0:02:22.6]} 18... Bb7 {[%clk 0:02:27.6]} 19. Nf5 {[%clk 0:02:05.5]} 19... Qf6
{[%clk 0:02:25.1]} 20. Qc2 {[%clk 0:01:52]} 20... Nef4 {[%clk 0:02:04.1]} 21.
Bxf4 {[%clk 0:01:40.1]} 21... Nxf4 {[%clk 0:02:04.7]} 22. Bxf7+ {[%clk
0:01:38.8]} 22... Kh8 {[%clk 0:02:06.2]} 23. Bxe8 {[%clk 0:01:36.7]} 23... Rxe8
{[%clk 0:02:08.1]} 24. Ne3 {[%clk 0:01:29.7]} 24... c5 {[%clk 0:02:05.3]} 25.
N5g4 {[%clk 0:01:28.3]} 25... Qxd4 {[%clk 0:02:01.6]} 26. Rad1 {[%clk
0:01:27.6]} 26... Qe4 {[%clk 0:01:43.3]} 27. Qxe4 {[%clk 0:01:21.1]} 27... Bxe4
{[%clk 0:01:45.2]} 28. Rfe1 {[%clk 0:01:12.9]} 28... b3 {[%clk 0:01:16.6]} 29.
Nc4 {[%clk 0:01:10.7]} 29... Kg8 {[%clk 0:01:12.8]} 30. f3 {[%clk 0:01:03.5]}
30... Bg6 {[%clk 0:01:13.1]} 31. Rxe8 {[%clk 0:01:02.2]} 31... Bxe8 {[%clk
0:01:15]} 32. Nxa5 {[%clk 0:00:59.1]} 32... Bxa4 {[%clk 0:01:14.3]} 33. Ra1
{[%clk 0:00:54.2]} 33... Bb5 {[%clk 0:01:13.7]} 34. Nxb3 {[%clk 0:00:54]} 34...
c4 {[%clk 0:01:09.7]} 35. Nd2 {[%clk 0:00:53]} 35... Nd3 {[%clk 0:01:08.9]} 36.
Ra2 {[%clk 0:00:45.9]} 36... Bc5+ {[%clk 0:01:06.7]} 37. Kh1 {[%clk 0:00:41.3]}
37... Bd4 {[%clk 0:01:07.6]} 38. Ne4 {[%clk 0:00:40.6]} 38... Nxb2 {[%clk
0:01:04]} 39. Ngf2 {[%clk 0:00:39.1]} 39... Ba4 {[%clk 0:00:51.3]} 40. Ra3
{[%clk 0:00:34.6]} 40... c3 {[%clk 0:00:50.4]} 41. Nxc3 {[%clk 0:00:34]} 41...
Bc5 {[%clk 0:00:48.2]} 42. Ra2 {[%clk 0:00:31.3]} 42... Bxf2 {[%clk 0:00:48.4]}
43. Nxa4 {[%clk 0:00:30.1]} 43... Nxa4 {[%clk 0:00:48]} 44. Rxf2 {[%clk
0:00:30.9]} 44... Nc3 {[%clk 0:00:49.6]} 45. f4 {[%clk 0:00:30.8]} 45... Ne4
{[%clk 0:00:50.6]} 46. Rf3 {[%clk 0:00:31.1]} 46... h5 {[%clk 0:00:51.3]} 47. g4
{[%clk 0:00:30.3]} 47... hxg4 {[%clk 0:00:51.7]} 48. hxg4 {[%clk 0:00:29.8]}
48... Kf7 {[%clk 0:00:53]} 49. Kg2 {[%clk 0:00:30]} 49... g5 {[%clk 0:00:52.6]}
50. f5 {[%clk 0:00:25.4]} 50... Kf6 {[%clk 0:00:53.5]} 51. Re3 {[%clk
0:00:24.8]} 51... Nc5 {[%clk 0:00:53.1]} 52. Kf3 {[%clk 0:00:24.2]} 52... Nd7
{[%clk 0:00:53.9]} 53. Re6+ {[%clk 0:00:24.7]} 53... Kf7 {[%clk 0:00:55.2]} 54.
Ke3 {[%clk 0:00:23.4]} 54... Nf6 {[%clk 0:00:55.9]} 55. Kf3 {[%clk 0:00:23.3]}
55... Nd7 {[%clk 0:00:57.1]} 56. Ke3 {[%clk 0:00:23.2]} 56... Nf6 {[%clk
0:00:58.1]} 57. Rxf6+ {[%clk 0:00:23.9]} 57... Kxf6 {[%clk 0:00:58.7]} 58. Ke4
{[%clk 0:00:24.9]} 58... Kf7 {[%clk 0:00:59]} 59. Ke5 {[%clk 0:00:25.9]} 1-0